fUSD/lending_fUSD_20260413
["ID","MTS","AMOUNT","RATE_DAILY","PERIOD"]
[420371575,1776041614325,-500.0,0.00039726,15]
[420371576,1776041614348,-1140.07,0.00039726,15]
[420371577,1776041614357,-2327.16,0.00039726,15]
[420371578,1776041614382,-1143.2,0.00039726,15]
[420371579,1776041614391,-691.76,0.00039726,15]
[420371580,1776041614403,-2867.96,0.00039726,15]
[420371581,1776041614429,-500.0,0.00039726,15]
[420371582,1776041614438,-502.71,0.00039726,15]
[420371583,1776041614447,-668.39,0.00039726,15]
[420371584,1776041614461,-825.64,0.00039726,15]
[420371585,1776041614473,-500.0,0.00039726,2]
[420371586,1776041614482,-772.87,0.00039726,15]
[420371587,1776041614491,-500.0,0.00039726,15]
[420371588,1776041614507,-2035.28,0.00039726,15]
[420371589,1776041614518,-2804.52,0.00039726,15]
[420371590,1776041614527,-500.0,0.00039726,15]
[420371591,1776041614551,-1528.0,0.00039726,30]
[420371592,1776041614560,-1000.0,0.00039737,120]
[420371593,1776041614575,-25260.02,0.000398,9]
[420371594,1776041614595,-11508.16,0.000398,9]
[420371595,1776041614605,-1000.0,0.000398,120]
[420371596,1776041614638,-1000.0,0.000398,7]
[420371597,1776041614652,-577.00991748,0.000398,7]
[420371598,1776041614664,-204.37585704,0.00039826,5]
[420371599,1776041614682,-648.7048,0.00039863,15]
[420371600,1776041614703,-500.0,0.00039863,120]
[420371601,1776041614717,-1346.30264729,0.00039881,120]
[420371602,1776041614737,-500.0,0.00039884,120]
[420371603,1776041614767,-507.0,0.00039897,16]
[420371604,1776041614791,-173.37,0.000399,120]
[420371605,1776041614807,-175.73,0.000399,120]
[420371606,1776041614861,-468.02389308,0.000399,2]
[420371607,1776041614886,-1157.846,0.000399,2]
[420371608,1776041614896,-42922.63156095,0.0003997,2]
[420371609,1776041614906,-1528.0,0.0004,30]
[420371610,1776041614922,-2584.4036366,0.0004,30]
[420371611,1776041614934,-30720.65482556,0.0004,2]
[420371612,1776041614946,-394.46480308,0.0004,2]
[420371613,1776041614962,-1577.39719661,0.0004,2]
[420371614,1776041614974,-4151.25665178,0.0004,2]
[420371615,1776041614984,-2716.97872914,0.0004,120]
[420371616,1776041614996,-276.06746379,0.0004,2]
[420371617,1776041615010,-966.57453743,0.0004,2]
[420371618,1776041615030,-2576.01446099,0.0004,120]
[420371619,1776041615040,-318.0353284,0.0004,2]
[420371620,1776041615050,-163.30697253,0.0004,2]
[420371621,1776041615069,-10796.75418344,0.0004,2]
[420371622,1776041615079,-2512.18028612,0.0004,120]
[420371623,1776041615088,-157.96446708,0.0004,2]
[420371624,1776041615099,-2747.90663593,0.0004,120]
[420371625,1776041615114,-500.0,0.0004,120]
[420371626,1776041615124,-3079.0,0.0004,30]
[420371627,1776041615137,-1001.0,0.0004,30]
[420371628,1776041615149,-1001.0,0.0004,30]
[420371629,1776041615162,-2925.98698661,0.0004,120]
[420371630,1776041615181,-5182.17094347,0.0004,30]
[420371631,1776041615191,-184711.83554026,0.0004,10]
[420371632,1776041615202,-4014.49487317,0.0004,30]
[420371633,1776041615213,-41185.80250966,0.0004,30]
[420371634,1776041615227,-2419.29143347,0.0004,120]
[420371635,1776041615245,-1060.0,0.0004,30]
[420371636,1776041615255,-12809.20955373,0.0004,30]
[420371637,1776041615270,-177.19766285,0.0004,5]
[420371638,1776041615284,-40000.0,0.0004,120]
[420371639,1776041615301,-545.42948833,0.0004,120]
[420371640,1776041615313,-3204.20448689,0.0004,60]
[420371641,1776041615336,-2995.0,0.0004,28]
[420371642,1776041615347,-165.553,0.0004,60]
[420371643,1776041615368,-573.94889985,0.0004,4]
[420371644,1776041615377,-366.56596742,0.0004,3]
[420371645,1776041615400,-1200.0,0.0004,30]
[420371646,1776041615411,-5129.13643177,0.0004,9]
[420371647,1776041615420,-500.0,0.0004,120]
[420371648,1776041615436,-5130.12345678,0.0004,8]
[420371649,1776041615451,-5110.46218496,0.0004,5]
[420371650,1776041615460,-183.0,0.0004,2]
[420371651,1776041615477,-150.42319755,0.0004,4]
[420371652,1776041615490,-30002.43729823,0.0004,2]
[420371653,1776041615499,-500.0,0.0004,10]
[420371654,1776041615515,-421.87798973,0.0004,4]
[420371655,1776041615524,-637.68189177,0.0004,15]
[420371656,1776041615536,-1663.8,0.0004,15]
[420371657,1776041615545,-500.0,0.0004,15]
[420371658,1776041615567,-550.79,0.0004,15]
[420371659,1776041615578,-500.0,0.0004,15]
[420371660,1776041615587,-500.0,0.0004,15]
[420371661,1776041615606,-500.0,0.0004,15]
[420371662,1776041615617,-515.51132936,0.0004,15]
[420371663,1776041615627,-697.6,0.0004,15]
[420371664,1776041615641,-500.0,0.0004,15]
[420371665,1776041615654,-500.0,0.0004,15]
[420371666,1776041615663,-500.0,0.0004,15]
[420371667,1776041615672,-500.0,0.0004,15]
[420371668,1776041615694,-947.62,0.0004,15]
[420371669,1776041615704,-500.0,0.0004,15]
[420371670,1776041615713,-500.0,0.0004,15]
[420371671,1776041615726,-545.57460742,0.0004,15]
[420371672,1776041615743,-785.07,0.0004,15]
[420371673,1776041615759,-500.0,0.0004,15]
[420371674,1776041615771,-1045.15,0.0004,15]
[420371675,1776041615786,-500.0,0.0004,15]
[420371676,1776041615800,-500.0,0.0004,15]
[420371677,1776041615813,-500.0,0.0004,15]
[420371678,1776041615826,-1634.13,0.0004,7]
[420371679,1776041615845,-500.0,0.0004,15]
[420371680,1776041615855,-500.0,0.0004,7]
[420371681,1776041615866,-500.0,0.0004,15]
[420371682,1776041615880,-628.08,0.0004,15]
[420371683,1776041615890,-710.03,0.0004,15]
[420371684,1776041615903,-849.78,0.0004,15]
[420371685,1776041615912,-500.0,0.0004,15]
[420371686,1776041615921,-1943.24,0.0004,15]
[420371687,1776041615935,-500.0,0.0004,15]
[420371688,1776041615945,-1068.31,0.0004,15]
[420371689,1776041615955,-601.67,0.0004,15]
[420371690,1776041615967,-500.0,0.0004,15]
[420371691,1776041615977,-500.0,0.0004,15]
[420371692,1776041615997,-763.96,0.0004,15]
[420371693,1776041616006,-500.0,0.0004,15]
[420371694,1776041616017,-647.78,0.0004,15]
[420371695,1776041616029,-500.0,0.0004,15]
[420371696,1776041616062,-1381.7,0.0004,15]
[420371697,1776041616081,-792.32,0.0004,15]
[420371698,1776041616098,-527.39,0.0004,15]
[420371699,1776041616111,-500.0,0.0004,15]
[420371700,1776041616123,-500.0,0.0004,15]
[420371701,1776041616157,-1152.6,0.0004,15]
[420371702,1776041616166,-500.0,0.0004,15]
[420371703,1776041616187,-500.0,0.0004,15]
[420371704,1776041616203,-969.29,0.0004,15]
[420371705,1776041616218,-500.0,0.0004,15]
[420371706,1776041616243,-1217.57,0.0004,15]
[420371707,1776041616257,-1867.56,0.0004,15]
[420371708,1776041616281,-500.0,0.0004,15]
[420371709,1776041616318,-621.51,0.0004,15]
[420371710,1776041616343,-500.0,0.0004,15]
[420371711,1776041616361,-582.94,0.0004,15]
[420371712,1776041616373,-500.0,0.0004,15]
[420371713,1776041616390,-500.0,0.0004,15]
[420371714,1776041616416,-1105.13,0.0004,15]
[420371715,1776041616432,-772.66,0.0004,15]
[420371716,1776041616453,-500.0,0.0004,15]
[420371717,1776041616462,-500.0,0.0004,15]
[420371718,1776041616478,-500.0,0.0004,15]
[420371719,1776041616505,-500.0,0.0004,15]
[420371720,1776041616539,-500.0,0.0004,15]
[420371721,1776041616574,-655.74,0.0004,15]
[420371722,1776041616587,-1081.95,0.0004,15]
[420371723,1776041616617,-500.0,0.0004,15]
[420371724,1776041616626,-500.0,0.0004,15]
[420371725,1776041616652,-500.0,0.0004,15]
[420371726,1776041616681,-500.0,0.0004,15]
[420371727,1776041616694,-953.1,0.0004,15]
[420371728,1776041616705,-500.0,0.0004,15]
[420371729,1776041616721,-500.0,0.0004,15]
[420371730,1776041616736,-627.16,0.0004,15]
[420371731,1776041616748,-2804.38,0.0004,15]
[420371732,1776041616760,-1274.7,0.0004,15]
[420371733,1776041616771,-500.0,0.0004,15]
[420371734,1776041616784,-500.0,0.0004,15]
[420371735,1776041616805,-2514.55,0.0004,15]
[420371736,1776041616815,-719.78,0.0004,15]
[420371737,1776041616832,-859.84,0.0004,2]
[420371738,1776041616842,-552.98,0.0004,15]
[420371739,1776041616852,-914.83,0.0004,15]
[420371740,1776041616873,-500.0,0.0004,15]
[420371741,1776041616882,-503.03701984,0.0004,15]
[420371742,1776041616892,-500.0,0.0004,15]
[420371743,1776041616927,-710.68,0.0004,15]
[420371744,1776041616936,-500.0,0.0004,15]
[420371745,1776041616945,-500.0,0.0004,15]
[420371746,1776041616956,-849.06,0.0004,7]
[420371747,1776041616975,-1369.55,0.0004,15]
[420371748,1776041616984,-500.0,0.0004,15]
[420371749,1776041617003,-1237.88,0.0004,15]
[420371750,1776041617020,-563.87,0.0004,15]
[420371751,1776041617029,-572.43741113,0.0004,15]
[420371752,1776041617038,-788.01,0.0004,15]
[420371753,1776041617057,-500.0,0.0004,15]
[420371754,1776041617067,-568.15,0.0004,15]
[420371755,1776041617077,-500.0,0.0004,15]
[420371756,1776041617109,-500.0,0.0004,15]
[420371757,1776041617119,-500.0,0.0004,15]
[420371758,1776041617134,-3366.71,0.0004,15]
[420371759,1776041617145,-923.98,0.0004,15]
[420371760,1776041617167,-2088.77,0.0004,15]
[420371761,1776041617177,-549.15,0.0004,15]
[420371762,1776041617196,-500.0,0.0004,15]
[420371763,1776041617206,-500.0,0.0004,15]
[420371764,1776041617218,-500.0,0.0004,15]
[420371765,1776041617231,-500.0,0.0004,15]
[420371766,1776041617241,-1268.03,0.0004,15]
[420371767,1776041617255,-500.0,0.0004,15]
[420371768,1776041617265,-500.0,0.0004,15]
[420371769,1776041617282,-558.39,0.0004,15]
[420371770,1776041617293,-554.85452024,0.0004,15]
[420371771,1776041617303,-500.0,0.0004,15]
[420371772,1776041617318,-1218.49,0.0004,15]
[420371773,1776041617331,-4311.22,0.0004,15]
[420371774,1776041617357,-788.69,0.0004,15]
[420371775,1776041617367,-707.14,0.0004,15]
[420371776,1776041617379,-500.0,0.0004,15]
[420371777,1776041617407,-500.0,0.0004,15]
[420371778,1776041617419,-683.01,0.0004,15]
[420371779,1776041617430,-654.55,0.0004,15]
[420371780,1776041617451,-500.0,0.0004,15]
[420371781,1776041617463,-1877.62,0.0004,15]
[420371782,1776041617472,-500.0,0.0004,15]
[420371783,1776041617486,-1985.43,0.0004,15]
[420371784,1776041617512,-601.40035388,0.0004,12]
[420371785,1776041617538,-1299.61,0.0004,15]
[420371786,1776041617548,-1450.56,0.0004,15]
[420371787,1776041617567,-500.0,0.0004,15]
[420371788,1776041617578,-919.99,0.0004,15]
[420371789,1776041617588,-500.0,0.0004,15]
[420371790,1776041617608,-500.0,0.0004,15]
[420371791,1776041617618,-500.0,0.0004,15]
[420371792,1776041617627,-2075.21,0.0004,15]
[420371793,1776041617638,-500.0,0.0004,15]
[420371794,1776041617657,-500.0,0.0004,15]
[420371795,1776041617668,-534.23,0.0004,15]
[420371796,1776041617689,-1289.28,0.0004,15]
[420371797,1776041617705,-500.0,0.0004,15]
[420371798,1776041617725,-500.0,0.0004,15]
[420371799,1776041617736,-500.0,0.0004,15]
[420371800,1776041617746,-500.0,0.0004,15]
[420371801,1776041617763,-1427.37,0.0004,15]
[420371802,1776041617775,-1530.82,0.0004,15]
[420371803,1776041617786,-500.0,0.0004,15]
[420371804,1776041617800,-2046.09,0.0004,15]
[420371805,1776041617820,-500.0,0.0004,15]
[420371806,1776041617833,-500.0,0.0004,15]
[420371807,1776041617850,-2529.22,0.0004,15]
[420371808,1776041617870,-745.28,0.0004,15]
[420371809,1776041617883,-808.37,0.0004,15]
[420371810,1776041617904,-2416.53,0.0004,15]
[420371811,1776041617926,-906.56,0.0004,15]
[420371812,1776041617938,-523.37,0.0004,15]
[420371813,1776041617950,-500.0,0.0004,15]
[420371814,1776041617972,-504.19,0.0004,15]
[420371815,1776041617983,-337.56718938,0.0004,15]
[420371816,1776041617995,-500.0,0.0004,15]
[420371817,1776041618014,-649.83516139,0.0004,15]
[420371818,1776041618023,-500.0,0.0004,15]
[420371819,1776041618037,-500.0,0.0004,15]
[420371820,1776041618059,-2898.73,0.0004,15]
[420371821,1776041618080,-500.0,0.0004,15]
[420371822,1776041618091,-2221.27,0.0004,15]
[420371823,1776041618103,-500.0,0.0004,15]
[420371824,1776041618124,-1447.93,0.0004,15]
[420371825,1776041618134,-819.82,0.0004,15]
[420371826,1776041618150,-500.0,0.0004,15]
[420371827,1776041618167,-739.29,0.0004,15]
[420371828,1776041618178,-500.0,0.0004,15]
[420371829,1776041618191,-1481.69,0.0004,15]
[420371830,1776041618203,-500.0,0.0004,15]
[420371831,1776041618213,-500.0,0.0004,15]
[420371832,1776041618225,-500.0,0.0004,15]
[420371833,1776041618241,-1386.95,0.0004,15]
[420371834,1776041618254,-504.87,0.0004,15]
[420371835,1776041618271,-500.0,0.0004,15]
[420371836,1776041618283,-1307.69,0.0004,15]
[420371837,1776041618299,-549.0410765,0.0004,15]
[420371838,1776041618311,-632.93,0.0004,15]
[420371839,1776041618320,-500.0,0.0004,15]
[420371840,1776041618331,-186.73715132,0.0004,15]
[420371841,1776041618348,-2461.87,0.0004,15]
[420371842,1776041618359,-500.0,0.0004,14]
[420371843,1776041618374,-500.0,0.0004,5]
[420371844,1776041618392,-644.51,0.0004,15]
[420371845,1776041618405,-1333.0,0.0004,15]
[420371846,1776041618415,-1064.34,0.0004,15]
[420371847,1776041618435,-1670.47,0.0004,15]
[420371848,1776041618452,-761.34,0.0004,15]
[420371849,1776041618467,-1111.33,0.0004,15]
[420371850,1776041618490,-500.0,0.0004,15]
[420371851,1776041618500,-808.18,0.0004,15]
[420371852,1776041618536,-548.68,0.0004,15]
[420371853,1776041618547,-921.66,0.0004,15]
[420371854,1776041618566,-500.0,0.0004,15]
[420371855,1776041618588,-500.0,0.0004,15]
[420371856,1776041618600,-500.0,0.0004,15]
[420371857,1776041618629,-1561.09,0.0004,15]
[420371858,1776041618666,-500.0,0.0004,15]
[420371859,1776041618691,-1822.44,0.0004,15]
[420371860,1776041618707,-500.0,0.0004,15]
[420371861,1776041618736,-500.0,0.0004,15]
[420371862,1776041618745,-887.2,0.0004,15]
[420371863,1776041618757,-810.27,0.0004,10]
[420371864,1776041618776,-1212.99,0.0004,15]
[420371865,1776041618794,-1687.08,0.0004,15]
[420371866,1776041618807,-836.17,0.0004,15]
[420371867,1776041618818,-500.0,0.0004,15]
[420371868,1776041618835,-616.32,0.0004,15]
[420371869,1776041618844,-500.0,0.0004,15]
[420371870,1776041618859,-500.0,0.0004,15]
[420371871,1776041618878,-500.0,0.0004,15]
[420371872,1776041618897,-500.0,0.0004,15]
[420371873,1776041618906,-500.0,0.0004,15]
[420371874,1776041618920,-990.96,0.0004,15]
[420371875,1776041618931,-500.0,0.0004,15]
[420371876,1776041618942,-500.0,0.0004,15]
[420371877,1776041618955,-1300.76,0.0004,15]
[420371878,1776041618966,-636.59,0.0004,15]
[420371879,1776041618982,-1007.92,0.0004,15]
[420371880,1776041618992,-500.0,0.0004,15]
[420371881,1776041619016,-500.0,0.0004,15]
[420371882,1776041619026,-1138.59,0.0004,15]
[420371883,1776041619035,-1730.4,0.0004,15]
[420371884,1776041619052,-1000.31,0.0004,15]
[420371885,1776041619077,-903.84,0.0004,15]
[420371886,1776041619087,-619.67,0.0004,15]
[420371887,1776041619103,-612.4781119,0.0004,15]
[420371888,1776041619138,-1778.75,0.0004,15]
[420371889,1776041619152,-1153.37,0.0004,15]
[420371890,1776041619162,-500.0,0.0004,15]
[420371891,1776041619182,-500.0,0.0004,15]
[420371892,1776041619195,-1092.35,0.0004,15]
[420371893,1776041619205,-500.0,0.0004,15]
[420371894,1776041619225,-500.0,0.0004,15]
[420371895,1776041619253,-500.0,0.0004,15]
[420371896,1776041619267,-500.0,0.0004,15]
[420371897,1776041619276,-1843.04,0.0004,15]
[420371898,1776041619302,-500.0,0.0004,15]
[420371899,1776041619313,-500.0,0.0004,15]
[420371900,1776041619323,-503.0,0.0004,15]
[420371901,1776041619339,-500.0,0.0004,15]
[420371902,1776041619350,-500.0,0.0004,15]
[420371903,1776041619362,-656.69,0.0004,15]
[420371904,1776041619374,-500.0,0.0004,15]
[420371905,1776041619392,-500.0,0.0004,15]
[420371906,1776041619405,-1937.81,0.0004,15]
[420371907,1776041619415,-754.33,0.0004,15]
[420371908,1776041619427,-1714.04,0.0004,15]
[420371909,1776041619444,-1292.76,0.0004,15]
[420371910,1776041619469,-500.0,0.0004,15]
[420371911,1776041619478,-500.0,0.0004,15]
[420371912,1776041619502,-1586.56,0.0004,15]
[420371913,1776041619514,-500.0,0.0004,15]
[420371914,1776041619526,-500.0,0.0004,15]
[420371915,1776041619555,-531.5,0.0004,15]
[420371916,1776041619565,-1395.23,0.0004,15]
[420371917,1776041619574,-1508.28,0.0004,15]
[420371918,1776041619594,-1383.28,0.0004,15]
[420371919,1776041619605,-1557.25,0.0004,15]
[420371920,1776041619617,-521.36,0.0004,15]
[420371921,1776041619635,-500.0,0.0004,15]
[420371922,1776041619647,-1577.69,0.0004,15]
[420371923,1776041619677,-2158.93,0.0004,15]
[420371924,1776041619686,-933.09,0.0004,15]
[420371925,1776041619695,-805.64,0.0004,15]
[420371926,1776041619735,-551.92,0.0004,15]
[420371927,1776041619746,-781.58,0.0004,15]
[420371928,1776041619759,-410.000714,0.0004,15]
[420371929,1776041619781,-1216.47,0.0004,15]
[420371930,1776041619791,-162.96341996,0.0004,15]
[420371931,1776041619811,-176.19983137,0.0004,15]
[420371932,1776041619840,-500.0,0.0004,15]
[420371933,1776041619849,-1203.91,0.0004,15]
[420371934,1776041619859,-665.94,0.0004,15]
[420371935,1776041619880,-500.0,0.0004,15]
[420371936,1776041619890,-1346.41,0.0004,15]
[420371937,1776041619899,-500.0,0.0004,15]
[420371938,1776041619927,-500.0,0.0004,15]
[420371939,1776041619936,-3502.27,0.0004,15]
[420371940,1776041619948,-1160.63,0.0004,15]
[420371941,1776041619965,-500.0,0.0004,15]
[420371942,1776041619975,-500.0,0.0004,15]
[420371943,1776041619984,-2492.69,0.0004,15]
[420371944,1776041620000,-812.32,0.0004,15]
[420371945,1776041620014,-500.0,0.0004,15]
[420371946,1776041620026,-500.0,0.0004,15]
[420371947,1776041620040,-713.05,0.0004,15]
[420371948,1776041620051,-2542.2,0.0004,15]
[420371949,1776041620066,-500.0,0.0004,15]
[420371950,1776041620079,-513.27,0.0004,15]
[420371951,1776041620088,-566.39636995,0.0004,15]
[420371952,1776041620105,-857.17,0.0004,15]
[420371953,1776041620114,-767.53,0.0004,15]
[420371954,1776041620131,-1949.22,0.0004,15]
[420371955,1776041620141,-500.0,0.0004,15]
[420371956,1776041620156,-271.08,0.0004,15]
[420371957,1776041620167,-2000.83,0.0004,15]
[420371958,1776041620181,-1020.08,0.0004,15]
[420371959,1776041620193,-671.18,0.0004,15]
[420371960,1776041620213,-500.0,0.0004,15]
[420371961,1776041620226,-500.0,0.0004,15]
[420371962,1776041620237,-1814.36,0.0004,15]
[420371963,1776041620246,-500.0,0.0004,15]
[420371964,1776041620267,-500.0,0.0004,15]
[420371965,1776041620276,-2557.75,0.0004,15]
[420371966,1776041620287,-1239.9,0.0004,15]
[420371967,1776041620305,-500.0,0.0004,15]
[420371968,1776041620315,-1024.03,0.0004,15]
[420371969,1776041620327,-1654.08,0.0004,15]
[420371970,1776041620339,-2033.34,0.0004,15]
[420371971,1776041620356,-500.0,0.0004,15]
[420371972,1776041620367,-240.90922584,0.0004,15]
[420371973,1776041620382,-403.5120489,0.0004,15]
[420371974,1776041620397,-1913.26,0.0004,15]
[420371975,1776041620408,-500.0,0.0004,15]
[420371976,1776041620435,-2148.07,0.0004,15]
[420371977,1776041620447,-1846.32,0.0004,15]
[420371978,1776041620466,-500.0,0.0004,15]
[420371979,1776041620478,-500.0,0.0004,15]
[420371980,1776041620490,-1029.57,0.0004,15]
[420371981,1776041620522,-500.0,0.0004,15]
[420371982,1776041620532,-515.85,0.0004,15]
[420371983,1776041620545,-667.8,0.0004,15]
[420371984,1776041620582,-1978.02,0.0004,15]
[420371985,1776041620591,-500.0,0.0004,15]
[420371986,1776041620618,-500.0,0.0004,15]
[420371987,1776041620658,-500.0,0.0004,15]
[420371988,1776041620669,-500.0,0.0004,15]
[420371989,1776041620816,-2182.18,0.0004,15]
[420371990,1776041620841,-500.0,0.0004,15]
[420371991,1776041620851,-2335.03,0.0004,15]
[420371992,1776041620861,-1212.24,0.0004,15]
[420371993,1776041620879,-500.0,0.0004,15]
[420371994,1776041620889,-1195.42,0.0004,15]
[420371995,1776041620899,-500.0,0.0004,15]
[420371996,1776041620908,-1419.56,0.0004,15]
[420371997,1776041620922,-1692.69,0.0004,15]
[420371998,1776041620931,-606.26,0.0004,15]
[420371999,1776041620945,-500.0,0.0004,15]
[420372000,1776041620955,-500.0,0.0004,15]
[420372001,1776041620964,-884.21,0.0004,15]
[420372002,1776041620975,-500.0,0.0004,15]
[420372003,1776041620987,-465.31667078,0.0004,15]
[420372004,1776041620997,-500.0,0.0004,15]
[420372005,1776041621006,-1649.72,0.0004,15]
[420372006,1776041621017,-500.0,0.0004,15]
[420372007,1776041621029,-621.97,0.0004,15]
[420372008,1776041621039,-559.48,0.0004,15]
[420372009,1776041621050,-1537.45,0.0004,15]
[420372010,1776041621060,-500.0,0.0004,15]
[420372011,1776041621073,-1130.48,0.0004,15]
[420372012,1776041621085,-500.0,0.0004,15]
[420372013,1776041621098,-500.0,0.0004,15]
[420372014,1776041621113,-870.95,0.0004,15]
[420372015,1776041621123,-500.0,0.0004,15]
[420372016,1776041621134,-500.0,0.0004,15]
[420372017,1776041621144,-706.59,0.0004,15]
[420372018,1776041621167,-687.5,0.0004,15]
[420372019,1776041621178,-629.42,0.0004,15]
[420372020,1776041621190,-500.0,0.0004,15]
[420372021,1776041621205,-354.63519089,0.0004,15]
[420372022,1776041621216,-1620.29,0.0004,15]
[420372023,1776041621229,-2507.84,0.0004,15]
[420372024,1776041621243,-730.08,0.0004,15]
[420372025,1776041621253,-500.0,0.0004,15]
[420372026,1776041621268,-500.0,0.0004,15]
[420372027,1776041621289,-1791.97,0.0004,15]
[420372028,1776041621298,-620.62,0.0004,15]
[420372029,1776041621313,-5639.6,0.0004,15]
[420372030,1776041621347,-500.0,0.0004,15]
[420372031,1776041621357,-595.83,0.0004,15]
[420372032,1776041621380,-500.0,0.0004,15]
[420372033,1776041621393,-532.56,0.0004,15]
[420372034,1776041621407,-500.0,0.0004,15]
[420372035,1776041621421,-791.1,0.0004,15]
[420372036,1776041621433,-1272.74,0.0004,15]
[420372037,1776041621447,-689.29,0.0004,15]
[420372038,1776041621473,-583.12403094,0.0004,15]
[420372039,1776041621483,-507.04,0.0004,15]
[420372040,1776041621495,-774.01,0.0004,15]
[420372041,1776041621543,-1988.49,0.0004,15]
[420372042,1776041621554,-500.0,0.0004,15]
[420372043,1776041621581,-1059.84,0.0004,15]
[420372044,1776041621592,-500.0,0.0004,15]
[420372045,1776041621615,-500.0,0.0004,15]
[420372046,1776041621630,-500.0,0.0004,15]
[420372047,1776041621645,-525.86,0.0004,15]
[420372048,1776041621659,-1410.63,0.0004,15]
[420372049,1776041621672,-2601.05,0.0004,15]
[420372050,1776041621682,-1360.07,0.0004,15]
[420372051,1776041621703,-500.0,0.0004,15]
[420372052,1776041621730,-500.0,0.0004,15]
[420372053,1776041621740,-544.4,0.0004,15]
[420372054,1776041621761,-500.0,0.0004,15]
[420372055,1776041621786,-2602.21,0.0004,15]
[420372056,1776041621797,-1246.17,0.0004,15]
[420372057,1776041621807,-1431.19,0.0004,15]
[420372058,1776041621825,-910.09,0.0004,15]
[420372059,1776041621840,-545.0,0.0004,15]
[420372060,1776041621851,-709.26,0.0004,15]
[420372061,1776041621877,-825.37,0.0004,15]
[420372062,1776041621887,-1026.91,0.0004,15]
[420372063,1776041621897,-1431.24,0.0004,15]
[420372064,1776041621916,-2532.94,0.0004,15]
[420372065,1776041621927,-206.52242306,0.0004,15]
[420372066,1776041621936,-500.0,0.0004,15]
[420372067,1776041621946,-483.46715615,0.0004,15]
[420372068,1776041621962,-730.35,0.0004,15]
[420372069,1776041621973,-4735.33,0.0004,15]
[420372070,1776041621982,-900.75,0.0004,15]
[420372071,1776041621994,-5584.03,0.0004,15]
[420372072,1776041622008,-1104.11,0.0004,15]
[420372073,1776041622021,-857.59,0.0004,15]
[420372074,1776041622034,-500.0,0.0004,15]